bitfinex-derivatives/quotes_ETHF0:USTF0_20250606
["timestamp","ask_amount","ask_price","bid_price","bid_amount"]
[1749246695114,0.80107,2494.7,2494.6,4.696]
[1749246695313,2.0084895,2495.0,2494.6,4.696]
[1749246695314,0.0060095,2495.0,2494.6,4.696]
[1749246695620,0.0060095,2495.0,2494.9,0.80101]
[1749246701622,0.8069895,2495.0,2494.9,0.80101]
[1749246701821,0.0060095,2495.0,2494.9,0.80101]
[1749246704123,0.8069895,2495.0,2494.9,0.80101]
[1749246704324,2.1206895,2495.0,2494.9,0.80101]
[1749246705019,0.8069895,2495.0,2494.9,0.80101]
[1749246708533,0.0060095,2495.0,2494.9,0.80101]
[1749246715331,0.8069895,2495.0,2494.9,0.80101]
[1749246716923,0.0060095,2495.0,2494.9,0.80101]
[1749246722435,0.07734301,2495.0,2494.9,0.80101]
[1749246722842,1.18663803,2495.0,2494.9,0.80101]
[1749246723139,0.07734301,2495.0,2494.9,0.80101]
[1749246724141,1.18752796,2495.0,2494.9,0.80101]
[1749246724643,1.11619445,2495.0,2494.9,0.80101]
[1749246726441,1.91716445,2495.0,2494.9,0.80101]
[1749246726643,1.11619445,2495.0,2494.9,0.80101]
[1749246728447,1.91716445,2495.0,2494.9,0.80101]
[1749246728850,0.80103,2494.9,2494.8,0.80101]
[1749246729042,2.54191495,2494.9,2494.8,0.80101]
[1749246729243,4.49461495,2494.9,2494.8,0.80101]
[1749246732243,4.49464737,2494.9,2494.8,0.80101]
[1749246734250,0.80106,2494.8,2494.7,0.80105]
[1749246734547,0.80107,2494.7,2494.6,4.698]
[1749246734754,0.80117,2494.4,2494.3,5.49918]
[1749246735454,0.80117,2494.4,2494.3,4.698]
[1749246735650,4.00897,2494.4,2494.3,4.698]
[1749246735954,2.77267,2494.4,2494.3,4.698]
[1749246736454,3.88055907,2494.4,2494.3,4.698]
[1749246736656,0.80126,2494.2,2494.1,0.80126]
[1749246736851,0.80126,2494.2,2494.1,5.49926]
[1749246737350,2.16911,2494.3,2494.2,0.80123]
[1749246737552,3.27639106,2494.3,2494.2,0.80123]
[1749246737952,2.16911,2494.3,2494.2,0.80123]
[1749246738853,1.3679,2494.3,2494.2,0.80123]
[1749246739054,2.1691,2494.3,2494.2,0.80123]
[1749246740358,0.80123,2494.2,2494.1,5.49925]
[1749246741552,0.80123,2494.2,2494.1,4.698]
[1749246741854,0.80123,2494.2,2494.1,5.49926]
[1749246742154,0.8013,2494.1,2494.0,0.80128]
[1749246742758,0.80132,2494.0,2493.9,0.80131]
[1749246743253,0.80133,2493.9,2493.8,15.54042189]
[1749246743452,0.80133,2493.9,2493.8,8.70814]
[1749246744553,2.12282,2494.0,2493.9,0.80133]
[1749246744955,0.80133,2493.9,2493.8,0.80134]
[1749246745260,2.81833,2493.9,2493.8,0.80134]
[1749246745463,0.80138,2493.8,2493.7,0.80137]
[1749246745758,1.3215,2493.8,2493.7,0.80137]
[1749246746255,4.5293,2493.8,2493.6,0.80141]
[1749246746460,0.6422,2493.7,2493.6,0.80141]
[1749246746654,2.71671,2493.7,2493.6,0.80141]
[1749246747054,0.6955,2493.9,2493.5,2.00365]
[1749246747260,0.0060095,2493.9,2493.8,0.80136]
[1749246747854,0.0060095,2493.9,2493.8,2.16546]
[1749246748454,9.5e-06,2493.9,2493.8,2.16546]
[1749246749356,9.5e-06,2493.9,2493.8,7.16546]
[1749246753959,3.2078,2494.9,2494.8,0.80104]
[1749246754460,0.6708,2495.0,2494.9,0.80101]
[1749246755460,1.9888,2495.0,2494.9,0.80101]
[1749246757862,0.6708,2495.0,2494.9,0.80101]
[1749246774177,1.47177,2495.0,2494.9,0.80101]
[1749246774378,2.77347,2495.0,2494.9,0.80101]
[1749246776273,1.9725,2495.0,2494.6,4.699]
[1749246776473,0.80106,2494.8,2494.7,0.80104]
[1749246776873,2.07676,2494.8,2494.7,0.80104]
[1749246777581,1.2757,2494.8,2494.7,0.80104]
[1749246778771,7.363925,2494.8,2494.6,4.699]
[1749246778976,0.80116,2494.5,2494.3,4.697]
[1749246779276,1.47937,2494.4,2494.3,4.697]
[1749246779476,0.80126,2494.1,2494.0,4.697]
[1749246780072,0.80136,2493.9,2493.8,0.80136]
[1749246780277,0.80133,2493.9,2493.7,5.49837]
[1749246780484,0.6603,2494.0,2493.7,4.697]
[1749246780485,2.76316,2493.8,2493.7,4.697]
[1749246780780,2.76316,2493.8,2493.6,0.8074]
[1749246780781,0.80139,2493.7,2493.6,0.006]
[1749246780977,0.80146,2493.5,2493.4,4.697]
[1749246781285,0.80152,2493.3,2493.1,0.80156]
[1749246781679,1.2836,2493.2,2493.1,0.80156]
[1749246781875,1.2836,2493.2,2493.0,4.697]
[1749246781876,0.6476,2493.4,2493.3,0.80152]
[1749246782684,0.80144,2493.6,2493.5,0.80146]
[1749246782889,1.2836,2493.7,2493.6,0.80142]
[1749246783385,1.3258,2493.8,2493.7,0.80139]
[1749246787682,2.6105,2493.8,2493.7,0.80139]
[1749246791293,1.3258,2493.8,2493.7,0.80139]
[1749246794698,0.8014,2493.7,2493.6,0.8014]
[1749246795002,3.47878,2493.8,2493.7,0.80139]
[1749246795902,2.6774,2493.8,2493.7,0.80139]
[1749246796201,0.0060095,2493.9,2493.8,0.80136]
[1749246797200,0.8073395,2493.9,2493.8,0.80136]
[1749246804609,0.80141,2493.7,2493.6,0.80138]
[1749246805305,1.46311,2493.7,2493.6,0.80138]
[1749246808510,0.0060095,2493.9,2493.5,6.70263]
[1749246808706,0.8073495,2493.9,2493.8,0.80136]
[1749246809010,1.87126154,2493.9,2493.8,0.80136]
[1749246810403,0.8014,2493.8,2493.7,0.80137]
[1749246810610,1.86531204,2493.8,2493.7,0.80137]
[1749246811513,1.06391204,2493.8,2493.7,0.80137]
[1749246812313,1.86527204,2493.8,2493.7,0.80137]
[1749246813612,1.06391204,2493.8,2493.7,0.80137]
[1749246814011,1.86527204,2493.8,2493.7,0.80137]
[1749246814212,1.06391204,2493.8,2493.7,0.80137]
[1749246814414,1.86527204,2493.8,2493.7,0.80137]
[1749246815617,1.06391204,2493.8,2493.7,0.80137]
[1749246817912,1.86527204,2493.8,2493.7,0.80137]
[1749246818913,1.06391204,2493.8,2493.7,0.80137]
[1749246820119,1.86527204,2493.8,2493.7,0.80137]
[1749246820319,3.20887204,2493.8,2493.7,0.80137]
[1749246823616,1.86527204,2493.8,2493.7,0.80137]
[1749246823818,3.23337204,2493.8,2493.7,0.80137]
[1749246824719,3.23337204,2493.8,2493.6,0.8014]
[1749246824720,0.80142,2493.7,2493.6,0.8014]
[1749246824927,3.19783204,2493.7,2493.6,0.8014]
[1749246825120,3.19783204,2493.7,2493.5,0.80143]
[1749246825121,0.80145,2493.6,2493.5,0.80143]
[1749246825325,4.50906204,2493.6,2493.5,0.80143]
[1749246836434,1.86533204,2493.6,2493.5,0.80143]
[1749246836636,4.0151495,2493.9,2493.8,0.80136]
[1749246836826,5.085567,2493.9,2493.8,0.80136]
[1749246841927,1.076427,2493.9,2493.8,0.80136]
[1749246842231,0.0060095,2493.9,2493.8,5.49936]
[1749246842635,0.0060095,2493.9,2493.8,6.18676]
[1749246844734,0.0060095,2493.9,2493.8,5.49936]
[1749246845035,1.4655395,2493.9,2493.8,5.49936]
[1749246845235,2.53514096,2493.9,2493.8,5.49936]
[1749246845632,2.53514096,2493.9,2493.8,4.698]
[1749246846834,2.53514096,2493.9,2493.8,5.49937]
[1749246848135,5.74294096,2493.9,2493.8,4.698]
[1749246848336,0.80144,2493.6,2493.5,0.80142]
[1749246853734,0.8014,2493.7,2493.6,0.8014]
[1749246854634,3.8720095,2493.9,2493.8,0.80136]
[1749246854936,4.92332664,2493.9,2493.8,0.80136]
[1749246855334,4.26512664,2493.9,2493.8,0.80136]
[1749246856837,1.05732664,2493.9,2493.8,0.80136]
[1749246870052,1.85865664,2493.9,2493.8,0.80136]
[1749246870449,1.8591204,2493.9,2493.8,0.80136]
[1749246871150,0.80143,2493.7,2493.6,0.8014]
[1749246871751,2.12753,2493.7,2493.6,0.8014]
[1749246873950,0.6352,2493.8,2493.7,0.80139]
[1749246874250,1.687166,2493.8,2493.7,0.80139]
[1749246881063,2.488526,2493.8,2493.7,0.80139]
[1749246881265,1.687166,2493.8,2493.7,0.80139]
[1749246881463,3.063066,2493.8,2493.7,0.80139]
[1749246882364,3.864426,2493.8,2493.7,0.80139]
[1749246883265,3.063066,2493.8,2493.7,0.80139]
[1749246892477,3.08203748,2493.8,2493.7,0.80139]
[1749246894674,3.88339748,2493.8,2493.7,0.80139]
[1749246894867,3.08203748,2493.8,2493.7,0.80139]
[1749246904781,3.88339748,2493.8,2493.7,0.80139]
[1749246904981,3.08203748,2493.8,2493.7,0.80139]
[1749246907077,2.0111,2493.8,2493.7,0.80139]
[1749246907283,0.80142,2493.6,2493.5,5.49643]
[1749246907479,1.87290997,2493.6,2493.5,5.49643]
[1749246907685,1.87290997,2493.6,2493.5,0.80143]
[1749246909785,1.07148997,2493.6,2493.5,0.80143]
[1749246910186,2.45868997,2493.6,2493.5,0.80143]
[1749246911986,3.26011997,2493.6,2493.5,0.80143]
[1749246912185,2.18863,2493.6,2493.5,0.80143]
[1749246912888,3.26349019,2493.6,2493.5,0.80143]
[1749246913884,2.18863,2493.6,2493.5,0.80143]
[1749246914484,3.26345218,2493.6,2493.5,0.80143]
[1749246914785,2.18863,2493.6,2493.5,0.80143]
[1749246914986,1.3872,2493.6,2493.5,0.80143]
[1749246915485,3.26337706,2493.6,2493.5,0.80143]
[1749246916391,0.80147,2493.5,2493.4,0.80147]
[1749246916596,4.61302706,2493.5,2493.4,0.80147]
[1749246920894,3.53827,2493.5,2493.4,0.80147]
[1749246921696,4.61161177,2493.5,2493.4,0.80147]
[1749246921899,3.53827,2493.5,2493.4,0.80147]
[1749246922897,4.61159092,2493.5,2493.4,0.80147]
[1749246924898,5.68470488,2493.5,2493.4,0.80147]
[1749246929304,0.80149,2493.4,2493.3,5.4965]
[1749246934208,4.61160092,2493.5,2493.4,0.80149]
[1749246934407,5.6848137,2493.5,2493.4,0.80149]
[1749246936211,4.2962137,2493.5,2493.4,0.80149]
[1749246946412,4.2962137,2493.5,2493.1,4.00937]
[1749246946413,0.80155,2493.2,2493.1,4.00937]
[1749246946615,0.80155,2493.2,2492.9,0.80163]
[1749246946616,0.80164,2493.0,2492.9,0.80163]
[1749246947815,1.44138,2493.1,2493.0,0.80162]
[1749246948415,0.80164,2493.0,2492.9,0.80164]
[1749246948717,1.4414,2493.1,2493.0,0.80162]
[1749246949019,2.51497099,2493.1,2493.0,0.80162]
[1749246949220,0.80163,2493.0,2492.9,0.80163]
[1749246949408,0.80163,2493.0,2492.9,0.80165]
[1749246949921,0.6398,2493.1,2492.7,2.0492]
[1749246950121,0.80163,2493.0,2492.9,0.80163]
[1749246951616,0.80163,2493.0,2492.9,0.80165]
[1749246952622,0.6398,2493.1,2492.7,2.0492]
[1749246952820,0.80164,2493.0,2492.9,0.80164]
[1749246954419,0.80168,2492.8,2492.7,1.4569]
[1749246954622,0.80171,2492.7,2492.6,5.49373]
[1749246954824,0.80175,2492.6,2492.5,1.46746]
[1749246955516,0.80171,2492.7,2492.6,0.80173]
[1749246955716,0.80178,2492.6,2492.5,0.80176]
[1749246956312,0.80178,2492.5,2492.4,5.49478]
[1749246956519,0.6797,2492.7,2492.5,0.80178]
[1749246956520,4.00958,2492.6,2492.5,0.80178]
[1749246956811,4.00958,2492.6,2492.2,2.63248]
[1749246956812,3.2078,2492.6,2492.2,0.6278]
[1749246957016,4.00964,2492.3,2492.2,0.6278]
[1749246957612,4.00964,2492.3,2492.2,1.42967]
[1749246957920,0.80184,2492.3,2492.2,1.42965]
[1749246958119,0.6658,2492.5,2492.4,0.80181]
[1749246958717,1.46758,2492.5,2492.4,0.80181]
[1749246958923,0.0060095,2492.6,2492.5,0.80178]
[1749246959625,0.8077495,2492.6,2492.5,0.80178]
[1749246959826,0.0060095,2492.6,2492.4,0.80179]
[1749246960128,0.0060095,2492.6,2492.5,0.80178]
[1749246961123,0.0060095,2492.6,2492.5,2.80238]
[1749246975429,0.80159,2493.1,2493.0,0.80161]
[1749246978636,3.48117,2493.2,2493.1,0.80158]
[1749246978838,4.51332959,2493.2,2493.1,0.80158]
[1749246979131,3.71177959,2493.2,2493.1,0.80158]
[1749246979337,2.6796,2493.2,2493.1,0.80158]
[1749246979740,3.48115,2493.2,2493.1,0.80158]
[1749246988844,4.51446112,2493.2,2493.1,0.80158]
[1749246989648,3.48115,2493.2,2493.1,0.80158]
[1749246990752,4.5149346,2493.2,2493.1,0.80158]
[1749246994546,3.7133846,2493.2,2493.1,0.80158]
[1749246995654,4.5149346,2493.2,2493.1,0.80158]
[1749246998454,3.7133846,2493.2,2493.1,0.80158]
[1749247002358,4.5149346,2493.2,2493.1,0.80158]
[1749247002658,3.7133846,2493.2,2493.1,0.80158]
[1749247006056,4.5149346,2493.2,2493.1,0.80158]
[1749247007257,3.7133846,2493.2,2493.1,0.80158]
[1749247007656,2.3778846,2493.2,2493.1,0.80158]
[1749247008463,1.6877846,2493.2,2493.1,0.80158]
[1749247010762,0.654,2493.2,2493.1,0.80158]
[1749247017369,0.0060095,2493.3,2493.2,0.80155]
[1749247017565,1.04202062,2493.3,2493.2,0.80155]
[1749247019770,1.84354062,2493.3,2493.2,0.80155]
[1749247020669,1.04202062,2493.3,2493.2,0.80155]
[1749247026181,1.04202062,2493.3,2493.1,0.80156]
[1749247026469,3.20299338,2493.2,2493.1,0.80156]
[1749247028166,0.80161,2493.1,2493.0,0.8016]
[1749247028474,4.53051338,2493.1,2493.0,0.8016]
[1749247029070,7.73831338,2493.1,2493.0,0.8016]
[1749247030874,6.93670338,2493.1,2493.0,0.8016]
[1749247031879,7.73828338,2493.1,2493.0,0.8016]
[1749247034580,0.80164,2493.0,2492.9,0.80163]
[1749247034775,3.12474338,2493.0,2492.9,0.80163]
[1749247036377,0.80165,2492.9,2492.8,0.0060095]
[1749247036572,3.17635338,2492.9,2492.8,0.0060095]
[1749247038276,3.18821561,2492.9,2492.8,0.0060095]
[1749247039677,7.87321561,2492.9,2492.8,0.0060095]
[1749247040079,12.87321561,2492.9,2492.8,0.0060095]
[1749247041378,8.18821561,2492.9,2492.8,0.0060095]
[1749247041582,7.38656561,2492.9,2492.8,0.0060095]
[1749247041779,8.18821561,2492.9,2492.8,0.8076895]
[1749247041983,2.38656561,2492.9,2492.8,0.8076895]
[1749247042181,1.04786561,2492.9,2492.8,0.8076895]
[1749247042385,1.3275,2493.1,2493.0,0.80161]
[1749247042687,0.0060095,2493.3,2493.2,0.80155]
[1749247042887,1.05202192,2493.3,2493.2,0.80155]
[1749247043989,1.85354192,2493.3,2493.2,0.80155]
[1749247046090,0.80161,2493.1,2493.0,0.8016]
[1749247047791,3.2078,2493.2,2492.8,0.0060095]
[1749247047991,1.43873,2493.0,2492.9,0.80165]
[1749247049788,1.43873,2493.0,2492.8,0.8076595]
[1749247049994,0.80165,2492.9,2492.8,0.8076595]
[1749247050491,1.43874,2493.0,2492.8,0.0060095]
[1749247050685,1.43874,2493.0,2492.9,0.80165]
[1749247052497,0.80165,2492.9,2492.8,0.8076695]
[1749247052702,0.80165,2492.9,2492.8,0.0060095]
[1749247053500,2.73235,2492.9,2492.8,0.8076895]
[1749247053695,1.44155,2492.9,2492.8,0.8076895]
[1749247053897,1.44155,2492.9,2492.8,0.0060095]
[1749247054601,2.70225,2492.9,2492.8,0.0060095]
[1749247055596,1.44155,2492.9,2492.8,0.0060095]
[1749247056614,1.44155,2492.9,2492.8,0.8076895]
[1749247058403,2.49353482,2492.9,2492.8,0.8076895]
[1749247059705,1.85363482,2492.9,2492.8,0.8076895]
[1749247060202,1.05198482,2492.9,2492.8,0.8076895]
[1749247060403,0.80162,2493.0,2492.9,0.80161]
[1749247060701,1.8536846,2493.0,2492.9,0.80161]
[1749247061007,1.8536846,2493.0,2492.9,1.46281]
[1749247064509,1.8536846,2493.0,2492.9,0.6612]
[1749247065006,1.8536846,2493.0,2492.9,1.46285]
[1749247065707,1.8536846,2493.0,2492.9,0.6612]
[1749247067510,1.8536846,2493.0,2492.9,1.46285]
[1749247069408,1.8536846,2493.0,2492.9,0.6612]
[1749247069809,1.8536846,2493.0,2492.9,1.46285]
[1749247085931,1.86304279,2493.0,2492.9,1.46285]
[1749247088331,1.86304279,2493.0,2492.9,0.80165]
[1749247090438,0.80165,2492.9,2492.8,0.8076795]
[1749247090631,2.51087279,2492.9,2492.8,0.8076795]
[1749247107262,1.06142279,2492.9,2492.8,0.8076795]
[1749247107464,1.86307279,2492.9,2492.8,0.8076795]
[1749247109160,1.06142279,2492.9,2492.8,0.8076795]
[1749247110157,1.86307279,2492.9,2492.8,0.8076795]
[1749247111064,1.87013375,2492.9,2492.8,0.8076795]
[1749247117971,1.06848375,2492.9,2492.8,0.8076795]
[1749247118770,1.06848375,2492.9,2492.8,2.1809795]
[1749247119471,0.0060095,2493.3,2493.2,0.80155]
[1749247119673,0.0060095,2493.3,2493.2,5.48155]
[1749247120370,0.0060095,2493.3,2493.2,7.48425]
[1749247124574,3.40772,2493.9,2493.8,0.80136]
[1749247125574,2.6064,2493.9,2493.8,0.80136]
[1749247127078,3.40772,2493.9,2493.8,0.80136]
[1749247127971,2.6064,2493.9,2493.6,0.6333]
[1749247128177,0.80141,2493.7,2493.6,0.80139]
[1749247128376,1.3074,2493.8,2493.5,4.68]
[1749247128580,2.10878,2493.8,2493.7,0.80139]
[1749247131471,2.10878,2493.8,2493.4,0.6766]
[1749247131472,1.3074,2493.8,2493.4,0.6766]
[1749247131672,4.5118,2493.7,2493.1,7.8848]
[1749247131972,0.80154,2493.3,2493.2,0.80152]
[1749247132366,4.0093,2493.4,2493.3,0.80152]
[1749247134878,3.2078,2493.4,2493.1,4.677]
[1749247135178,3.2078,2493.4,2492.8,5.4846795]
[1749247135179,0.80165,2492.9,2492.8,5.4846795]
[1749247135380,4.00945,2492.9,2492.8,5.4846795]
[1749247139582,4.00945,2492.9,2492.8,0.0060095]
[1749247140087,5.06801559,2492.9,2492.8,0.0060095]
[1749247140280,4.00945,2492.9,2492.8,0.0060095]
[1749247140586,10.0680182,2492.9,2492.8,0.0060095]
[1749247140777,10.0680182,2492.9,2492.2,0.6371]
[1749247140778,2.00434,2492.7,2492.2,4.677]
[1749247140987,0.80184,2492.3,2492.2,4.677]
[1749247141283,0.80193,2492.0,2491.9,4.677]
[1749247141683,0.80193,2492.0,2491.9,5.47897]
[1749247142483,0.80198,2491.9,2491.8,0.80198]
[1749247144491,0.80196,2492.0,2491.9,0.80195]
[1749247147480,2.76426,2492.0,2491.9,0.80195]
[1749247147689,0.6971,2492.1,2491.7,7.8918095]
[1749247147890,0.0060095,2492.2,2491.7,7.8918095]
[1749247147891,0.0060095,2492.2,2492.1,0.8019]
[1749247151388,0.0060095,2492.2,2492.1,2.1184]
[1749247151691,1.3212,2493.0,2492.9,0.80165]
[1749247151893,1.3212,2493.0,2492.2,2.00469]
[1749247151894,1.47557,2493.2,2492.7,2.00428]
[1749247152082,1.47557,2493.2,2493.1,0.80158]
[1749247152487,0.80159,2493.1,2493.0,0.80159]
[1749247154392,2.79676,2493.2,2493.1,0.80158]
[1749247154689,0.80159,2493.1,2493.0,0.80162]
[1749247156391,2.79677,2493.2,2493.1,0.80158]
[1749247157680,0.8016,2493.1,2493.0,0.80159]
[1749247157885,0.8016,2493.1,2492.5,4.00954]
[1749247157886,0.80174,2492.6,2492.5,4.00954]
[1749247165992,0.80174,2492.6,2492.5,0.80174]
[1749247170294,1.48212,2492.7,2492.6,0.80174]
[1749247170496,2.76772,2492.7,2492.6,0.80174]
[1749247173200,3.82623233,2492.7,2492.6,0.80174]
[1749247173799,2.76772,2492.7,2492.6,0.80174]
[1749247175000,3.82644336,2492.7,2492.6,0.80174]
[1749247187594,3.83704498,2492.7,2492.6,0.80174]
[1749247190110,2.55144498,2492.7,2492.6,0.80174]
[1749247191218,1.06932498,2492.7,2492.6,0.80174]
[1749247193109,1.46339,2492.8,2492.7,0.80171]
[1749247193309,1.73105109,2492.8,2492.7,0.80171]
[1749247194819,1.06935109,2492.8,2492.7,0.80171]
[1749247195811,1.06935109,2492.8,2492.7,4.00951]
[1749247198813,1.06935109,2492.8,2492.7,0.80171]
[1749247201517,0.6481,2493.1,2493.0,0.80161]
[1749247201710,1.71704857,2493.1,2493.0,0.80161]
[1749247201911,0.0060095,2493.3,2493.2,0.80155]
[1749247202114,1.0748904,2493.3,2493.2,0.80155]
[1749247202615,0.0060095,2493.3,2493.2,0.80155]
[1749247202804,0.0060095,2493.3,2493.2,2.10795]
[1749247203010,0.0060095,2493.3,2493.2,2.79785]
[1749247203411,0.0060095,2493.3,2493.2,0.80155]
[1749247203607,0.80158,2493.1,2493.0,0.0060095]
[1749247203812,1.86941702,2493.1,2493.0,0.0060095]
[1749247204216,3.13751702,2493.1,2493.0,0.0060095]
[1749247205218,3.13751702,2493.1,2493.0,0.8076295]
[1749247205719,3.13751702,2493.1,2493.0,0.0060095]
[1749247206618,3.13751702,2493.1,2493.0,0.8076195]
[1749247209919,1.06783702,2493.1,2493.0,0.8076195]
[1749247210217,0.0060095,2493.3,2493.2,0.80155]
[1749247216223,0.0060095,2493.3,2493.2,4.00935]
[1749247216424,0.0060095,2493.3,2493.2,5.33955]
[1749247217619,0.0060095,2493.3,2493.2,4.00935]
[1749247219426,0.0060095,2493.3,2493.2,5.27165]
[1749247221028,0.6665,2493.7,2493.6,0.80142]
[1749247221824,0.6665,2493.7,2493.6,1.46982]
[1749247223026,3.2078,2493.8,2493.7,0.80138]
[1749247223623,0.0060095,2493.9,2493.8,0.80135]
[1749247223923,0.0060095,2493.9,2493.8,5.47235]
[1749247224225,1.2814,2494.3,2494.2,0.80123]
[1749247224926,5.39802,2494.6,2494.1,8.5588]
[1749247225131,4.5969,2494.6,2494.5,0.80113]
[1749247227632,1.3891,2494.6,2494.5,0.80113]
[1749247232728,2.1902,2494.6,2494.5,0.80113]
[1749247235026,1.3891,2494.6,2494.3,0.0060095]
[1749247235224,4.00896,2494.4,2494.3,0.0060095]
[1749247236930,0.80129,2494.0,2493.9,5.47131]
[1749247238435,0.80129,2494.0,2493.9,4.67]
[1749247238634,0.80132,2493.9,2493.8,4.67]
[1749247238829,0.80135,2493.8,2493.7,0.0060095]
[1749247239029,0.80155,2493.2,2493.1,9.97056278]
[1749247239334,4.00935,2493.2,2493.1,4.67]
[1749247239529,0.80164,2492.9,2492.8,4.67]
[1749247239734,4.00944,2492.9,2492.8,4.67]
[1749247241433,4.00944,2492.9,2492.8,5.47167]
[1749247241938,3.2078,2492.9,2492.7,5.47269]
[1749247242235,2.0372,2492.8,2492.7,5.47269]
[1749247246537,2.83887,2492.8,2492.7,5.47269]
[1749247247741,2.0372,2492.8,2492.7,5.47269]
[1749247248638,2.0372,2492.8,2492.6,0.0060095]
[1749247248835,0.80171,2492.7,2492.6,0.0060095]
[1749247249037,2.13641,2492.7,2492.6,0.0060095]
[1749247251141,2.13641,2492.7,2492.6,0.8077495]
[1749247251348,2.13641,2492.7,2492.6,0.0060095]
[1749247251832,2.78401,2492.7,2492.6,0.0060095]
[1749247252645,2.78401,2492.7,2492.6,0.8077495]
[1749247256249,5.99181,2492.7,2492.6,0.8077495]
[1749247261356,4.65711,2492.7,2492.6,0.8077495]
[1749247263150,1.44931,2492.7,2492.6,0.8077495]
[1749247263350,4.65711,2492.7,2492.6,0.8077495]
[1749247265059,4.00951,2492.7,2492.6,0.8077495]
[1749247267059,3.2078,2492.7,2492.6,0.8077495]
[1749247268360,4.28679747,2492.7,2492.6,0.8077495]
[1749247268560,5.08850747,2492.7,2492.6,0.8077495]
[1749247272468,1.88070747,2492.7,2492.6,0.8077495]
[1749247272659,5.08850747,2492.7,2492.6,0.8077495]
[1749247272960,5.08850747,2492.7,2492.6,0.0060095]
[1749247273264,6.47100747,2492.7,2492.6,0.0060095]
[1749247276468,6.47100747,2492.7,2492.6,0.00109485]
[1749247277359,2.00439,2492.6,2492.1,0.6491]
[1749247277562,2.00439,2492.6,2492.1,0.80188]
[1749247277563,0.80187,2492.2,2492.1,0.80188]
[1749247277761,1.88086747,2492.2,2492.1,0.80188]
[1749247277968,2.53686747,2492.2,2492.1,0.80188]
[1749247279171,2.53686747,2492.2,2491.9,0.0060095]
[1749247279172,0.80193,2492.0,2491.9,0.0060095]
[1749247279373,1.88146451,2492.0,2491.9,0.0060095]
[1749247280464,5.08926451,2492.0,2491.9,0.0060095]
[1749247282178,5.08926451,2492.0,2490.7,3.2078]
[1749247282179,2.00492,2491.9,2490.7,3.2078]
[1749247282474,3.2078,2490.8,2490.2,3.2078]
[1749247282668,0.80236,2490.7,2490.5,0.8024]
[1749247283267,0.80237,2490.7,2490.5,0.8024]
[1749247283463,0.80238,2490.6,2490.4,0.80243]
[1749247283664,0.80237,2490.7,2490.5,0.80242]
[1749247283873,3.2138218,2490.8,2490.2,7.8798]
[1749247283874,3.2138218,2490.8,2490.2,3.27913351]
[1749247284074,2.0183,2490.6,2490.2,3.27913351]
[1749247284270,0.6282,2490.6,2490.2,3.27913351]
[1749247284471,4.0161618,2490.8,2490.6,0.80238]
[1749247284677,0.8083618,2490.8,2490.6,0.80238]
[1749247284884,0.0060218,2490.8,2490.7,0.80235]
[1749247289086,0.8083418,2490.8,2490.7,0.80235]
[1749247289585,0.0060218,2490.8,2490.7,0.80235]
[1749247290581,0.8083418,2490.8,2490.7,0.80235]
[1749247291991,0.0060218,2490.8,2490.7,0.80235]
[1749247292578,0.8083418,2490.8,2490.7,0.80235]
[1749247293790,0.0060218,2490.8,2490.7,0.80235]
[1749247294584,0.8083418,2490.8,2490.7,0.80235]
[1749247294981,0.0060218,2490.8,2490.7,0.87368351]
[1749247296094,0.8083418,2490.8,2490.7,0.80235]
[1749247297593,0.0060218,2490.8,2490.7,0.80235]
[1749247298693,0.8083418,2490.8,2490.7,0.80235]
[1749247299080,0.80241,2490.6,2490.5,0.80238]
[1749247299287,0.80242,2490.5,2490.4,3.2078]
[1749247299786,0.80245,2490.4,2490.3,0.6619]
[1749247300386,0.80248,2490.3,2490.2,0.8025]
[1749247300586,1.48158,2490.3,2490.2,0.8025]
[1749247300996,0.80253,2490.2,2490.1,5.47752]
[1749247302082,1.48161,2490.3,2490.2,0.80251]
[1749247305299,1.48161,2490.3,2490.2,0.87384351]
[1749247306293,1.48161,2490.3,2490.2,0.80251]
[1749247310403,1.48161,2490.3,2490.2,0.87384351]
[1749247312302,1.48161,2490.3,2490.2,0.80251]
[1749247313503,1.48161,2490.3,2490.2,0.87384351]
[1749247323212,1.48161,2490.3,2490.2,0.07133351]
[1749247324416,1.48161,2490.3,2490.2,0.87384351]
[1749247325308,1.48161,2490.3,2490.2,0.07133351]
[1749247326504,1.48161,2490.3,2490.2,0.87384351]
[1749247326710,1.48161,2490.3,2490.2,0.07133351]
[1749247327616,2.48203556,2490.3,2490.2,0.07133351]
[1749247328211,5.68983556,2490.3,2490.2,0.07133351]
[1749247328613,0.80254,2490.1,2490.0,4.753]
[1749247328801,1.80296556,2490.1,2490.0,4.753]
[1749247330021,3.14186556,2490.1,2490.0,4.753]
[1749247330508,3.09676901,2490.1,2490.0,4.753]
[1749247331106,2.29422901,2490.1,2489.8,0.80263]
[1749247331313,2.00663,2489.8,2489.2,4.05957336]
[1749247331516,2.00663,2489.8,2489.2,0.07133351]
[1749247331517,3.2078,2489.6,2489.2,0.07133351]
[1749247331710,0.80281,2489.3,2489.2,0.80281]
[1749247332510,0.80279,2489.4,2489.3,0.80278]
[1749247333619,0.80282,2489.3,2489.2,0.80281]
[1749247333817,0.80279,2489.4,2489.3,0.80278]
[1749247334016,0.80279,2489.4,2489.3,0.80279]
[1749247334017,0.80281,2489.4,2489.3,0.80279]
[1749247334721,0.80282,2489.3,2489.2,0.80281]
[1749247339527,0.80279,2489.4,2489.3,0.80279]
[1749247340821,0.8028,2489.3,2489.2,0.07133351]
[1749247341025,0.80299,2488.7,2488.6,5.4369]
[1749247341321,5.21515,2488.9,2488.4,6.24849]
[1749247341523,3.9057,2489.2,2488.6,3.2078]
[1749247341729,0.0060218,2489.5,2489.4,0.80277]
[1749247342221,0.8028,2489.3,2489.2,0.07133351]
[1749247342426,0.80303,2488.6,2488.5,0.6774]
[1749247342627,5.21521,2488.8,2488.3,0.80311]
[1749247342823,0.80311,2488.4,2488.3,0.8031]